Cogmind - Beta 16 @@@ ROGUE MODE // 2026.02.08 @ 14:16:38 Player: chebyrekser Result: Destroyed by Executioner with Helical Railgun Performance ------------- Evolutions (9) 4500 Regions Visited (22) 4400 Robots Destroyed (414) 2070 Value Destroyed (23534) 23534 Prototype IDs (30) 600 Alien Tech Used (4) 800 Bonus (19338) 19338 TOTAL SCORE: 55242 Bonus ------- Triggered High Security 1000 High Alert Combat Kills 10548 Follower Combat Kills 1792 Destroyed Unchained 1000 Network Hubs Disabled 200 Registered with UFD 300 Met Optimus in HQ 500 Met Zhirov 300 Built Enhanced Grunts 300 A7 Reached Mainframe 300 Met R17 at Cetus 500 Read Decrypted Archives 300 Met R17 at Research 2000 Scanned by Researcher 500 Friendly Fire -202 Cogmind --------- Core Integrity 0/1600 Matter 149/300 Energy 100/100 System Corruption 25% Temperature Cool (0) Movement Core (50) Location -1/Command Parts ------- > --- POWER (3) -------- (None) > --- PROPULSION (6) --- (None) > --- UTILITY (12) ----- Graphene Brace Improved System Guard > --- WEAPON (4) ------- (None) > --- INVENTORY (5) ---- High-powered Tractor Beam Gamma Rifle Enhanced Hardcell Cannon Improved Plasma Cutter Peak State ------------ > --- POWER ------------ Particle Reactor Quantum Reactor Quantum Reactor > --- PROPULSION ------- Advanced Heavy Treads Centrium Heavy Treads Biometal Heavy Treads > --- UTILITY ---------- Improved Cooling System Advanced Cooling System Huge Storage Unit Experimental Signal Interpreter Zeronet Interface Surveybot 17 Chip Advanced Weapon Cycler Transmission Jammer Layered Heavy Armor Plating Makeshift Hacking Suite Improved System Restoration Module > --- WEAPON ----------- Advanced Variable Charge Gun Enhanced Nova Cannon Enhanced Hardcell Cannon Enhanced Hardcell Cannon > --- INVENTORY -------- Particle Reactor Improved Heavy Siege Treads Advanced Heavy Siege Treads Advanced Heat Sink Improved Matter Compressor Long-range Sensor Array Terrain Scanner Advanced Target Analyzer Graphene Brace Improved Remote Shield Transdimensional Reconstructor Subatomic Replicator Railgun Hypervelocity Railgun Heavy Hardcell Cannon Heavy Hardcell Cannon Enhanced Hardcell Cannon Enhanced Hardcell Cannon Gamma Bomb Array Mini Smartbomb Launcher Improved Plasma Cutter [Rating: 205] Favorites ----------- Power Quantum Reactor Engine Ion Engine Power Core Reinforced Fission Core Reactor Quantum Reactor Propulsion Centrium Heavy Treads Treads Centrium Heavy Treads Leg Aluminum Leg Wheel Compact Wheel Utility High-capacity Storage Unit Device Seismic Detector Storage High-capacity Storage Unit Processor Core Analyzer Hackware Makeshift Hacking Suite Protection Centrium Medium Armor Plating Weapon Enhanced Hardcell Cannon Energy Gun Advanced Variable Charge Gun Energy Cannon Matter Neutralizer Ballistic Gun Railgun Ballistic Cannon Enhanced Hardcell Cannon Launcher Gamma Bomb Array Special Weapon Junk Cannon Slashing Weapon Phasing Sabre Build | -11 -10 -10 -8 -6 -6 -6 -6 -6 -5 -5 -5 -5 -4 -4 -4 -4 -3 -3 -2 -2 -1 -1 ------- Run | Yrd Mat Sub Scr Fac Ext Cet Arc Hub Fac Upp Upp Zhi Pro Fac Arm Lab Res Qua Res Tes Acc Com Slots Evolved 18 | . . . . 8 . . . . 2 . . . . 2 . . 2 . 2 . 2 . Power 2 | . . . . . . . . . 1 . . . . . . . . . 1 . . . Propulsion 4 | . . . . 2 . . . . . . . . . . . . 2 . . . . . Utility 10 | . . . . 4 . . . . 1 . . . . 2 . . . . 1 . 2 . Weapon 2 | . . . . 2 . . . . . . . . . . . . . . . . . . Parts Attached 185 | 9 3 12 6 11 9 7 . 8 5 . 1 7 3 3 21 . 7 3 9 3 9 49 Power 18 | 1 1 1 1 1 . 1 . . 1 . . 1 . . 3 . . 1 2 . . 4 Engine 4 | 1 1 1 1 . . . . . . . . . . . . . . . . . . . Core 1 | . . . . . . . . . . . . . . . 1 . . . . . . . Reactor 13 | . . . . 1 . 1 . . 1 . . 1 . . 2 . . 1 2 . . 4 Propulsion 32 | 3 . 2 3 4 . 2 . 3 . . . 1 . . 2 . 1 . 1 . 1 9 Treads 24 | 2 . . . 4 . 2 . 3 . . . . . . 2 . 1 . 1 . 1 8 Leg 6 | . . 2 2 . . . . . . . . 1 . . . . . . . . . 1 Wheel 2 | 1 . . 1 . . . . . . . . . . . . . . . . . . . Hover . | . . . . . . . . . . . . . . . . . . . . . . . Flight . | . . . . . . . . . . . . . . . . . . . . . . . Utility 79 | 2 1 3 1 3 6 1 . 4 3 . 1 3 . 2 8 . 3 2 4 2 6 24 Device 41 | 1 . 2 . 1 2 . . 3 3 . 1 . . 1 3 . 1 2 2 1 4 14 Storage 6 | 1 1 1 . . . . . . . . . 1 . . . . . . 1 1 . . Processor 8 | . . . . . 1 . . . . . . 1 . . 2 . . . . . 1 3 Hackware 2 | . . . . 1 . . . . . . . . . . 1 . . . . . . . Protection 22 | . . . 1 1 3 1 . 1 . . . 1 . 1 2 . 2 . 1 . 1 7 Artifact . | . . . . . . . . . . . . . . . . . . . . . . . Weapon 56 | 3 1 6 1 3 3 3 . 1 1 . . 2 3 1 8 . 3 . 2 1 2 12 Energy Gun 12 | 2 . . . . . 1 . 1 . . . 1 . . . . . . . . . 7 Energy Cannon 9 | . 1 2 . . . 1 . . . . . . 1 . 1 . . . 1 1 1 . Ballistic Gun 10 | 1 . 2 . 2 . . . . 1 . . 1 . . 1 . 1 . . . . 1 Ballistic Cannon 12 | . . 2 . . . . . . . . . . . 1 4 . 1 . . . 1 3 Launcher 8 | . . . . . 1 . . . . . . . 2 . 2 . 1 . 1 . . 1 Special Weapon 3 | . . . 1 . 2 . . . . . . . . . . . . . . . . . Impact Weapon . | . . . . . . . . . . . . . . . . . . . . . . . Slashing Weapon 2 | . . . . 1 . 1 . . . . . . . . . . . . . . . . Piercing Weapon . | . . . . . . . . . . . . . . . . . . . . . . . Special Melee Weapon . | . . . . . . . . . . . . . . . . . . . . . . . Unidentified Prototypes 20 | . . . 1 1 . 2 . 1 1 . . 5 2 . 2 . . . 1 1 2 1 Corrupted Parts 5 | . . . . . . . . 4 . . . . . . . . . . . . . 1 System Corruption 35 | . . . . . . . . 30 . . . . . . . . . . . . . 5 Parts Lost 43 | . . 4 . . 1 . . 1 . . . 1 1 . 2 . 1 . . . 4 28 Power 4 | . . 1 . . . . . . . . . . . . . . . . . . . 3 Propulsion 9 | . . 2 . . . . . . . . . . . . . . . . . . . 7 Utility 23 | . . . . . 1 . . 1 . . . 1 . . 1 . . . . . 4 15 Weapon 7 | . . 1 . . . . . . . . . . 1 . 1 . 1 . . . . 3 Highest Loss Streak 15 | . . 2 . . 1 . . 1 . . . 1 1 . 1 . 1 . . . 2 15 To Critical Strikes . | . . . . . . . . . . . . . . . . . . . . . . . Average Backups 17 | 4 13 17 18 19 19 18 17 16 16 17 17 17 16 16 16 16 15 16 16 18 19 20 Power 1 | . 1 . . 1 2 1 2 2 1 1 1 1 1 1 . 1 1 1 . 1 1 1 Propulsion 2 | 2 4 2 2 5 5 2 3 2 2 2 2 2 2 2 2 2 1 2 2 2 2 2 Utility 5 | . 2 5 6 4 4 5 5 5 6 7 7 9 8 7 6 6 5 5 4 6 6 3 Weapon 7 | . 5 8 7 6 6 7 7 6 6 7 7 4 4 5 5 5 5 4 4 5 6 9 Tool/Special . | . . . . . . . . . . . . . . . . . . . . . . . Unused Backups 75 | 1 . 3 18 7 . 4 1 1 . . 7 1 5 . 4 . 1 1 1 1 3 16 Power 11 | . . . 2 1 . . . . . . . . . . . . . . . . . 8 Propulsion 10 | 1 . . 3 . . 3 . . . . 1 . 2 . . . . . . . . . Utility 24 | . . . 7 2 . 1 1 . . . 3 1 2 . 2 . 1 1 . . 1 2 Weapon 28 | . . 3 6 4 . . . 1 . . 3 . 1 . 2 . . . 1 1 2 4 Tool/Special 2 | . . . . . . . . . . . . . . . . . . . . . . 2 Average Slot Usage (%) 88 | . 99 99 90 87 91 84 80 78 73 76 74 68 85 88 93 94 89 85 85 81 83 83 Engine 5 | . 14 14 13 3 . . . . . . . . . . . . . . . . . . Reactor 6 | . . . . 2 6 6 6 6 9 11 11 11 11 10 6 5 4 7 12 13 12 11 Treads 12 | . 28 12 . 24 26 24 20 19 11 11 11 10 11 10 14 15 18 14 12 13 12 14 Leg 4 | . . 15 12 . . . . . . . . . . . . . . . . . . . Wheel 2 | . . . 14 . . . . . . . . . . . . . . . . . . . Device 14 | . 13 13 13 11 4 . 2 4 8 10 10 5 5 10 15 15 14 14 17 17 23 23 Storage 8 | . 14 14 13 6 6 6 6 6 5 5 5 5 5 5 5 5 4 4 4 4 4 3 Processor 5 | . . . . . 5 6 6 6 5 5 5 5 11 10 10 10 9 9 8 8 8 11 Hackware 2 | . . . . 5 6 6 6 6 5 5 5 5 5 5 5 5 4 4 4 4 4 1 Protection 4 | . . . . 11 13 13 9 6 7 5 5 9 10 14 9 10 9 9 7 4 4 3 Energy Gun 2 | . 10 . . . . 4 . . 5 5 3 2 4 5 1 5 4 4 3 4 2 4 Energy Cannon 4 | . 3 8 6 . . 1 6 6 . . . . 6 5 4 5 4 4 3 4 3 2 Ballistic Gun 5 | . 14 10 6 8 12 1 . . 4 . 5 2 3 5 4 5 3 4 4 3 2 . Ballistic Cannon 4 | . . 8 . . . . . . . . . . . 4 7 5 3 4 3 4 6 6 Special Weapon 1 | . . . 6 6 6 6 6 6 5 5 5 2 2 . . . . . . . . . Peak Build Rating 205 | 7 8 15 27 67 68 96 96 106 116 115 120 124 127 137 145 135 157 162 184 199 203 205 Average Rating 99 | 5 7 11 17 61 65 80 92 91 110 108 112 107 124 134 138 135 154 159 177 186 196 189 On Entrance 102 | . 7 8 11 25 63 67 96 89 106 115 115 114 120 127 136 135 135 157 161 182 188 203 Avg Prop Armor Cover (%) 27 | 3 . . . . . . . . . . . . . . . . . . . . . 31 Naked Turns 52 | . . . 52 . . . . . . . . . . . . . . . . . . . Heaviest Build 223 | 13 31 58 64 81 95 107 107 108 121 118 121 121 114 130 145 133 135 135 174 214 223 220 Greatest Support 230 | 40 40 40 32 112 112 136 136 160 160 160 160 160 160 160 160 150 230 230 230 230 230 230 Greatest Overweight (x) 2 | . . 2 2 2 . . . . . . . 1 . . 1 . . . 1 . 1 1 Average Overweight (x) . | . . 1 1 . . . . . . . . . . . . . . . . . . . Largest Inventory Capacity 25 | 8 15 20 20 20 20 20 20 20 20 20 20 20 20 20 20 20 20 20 20 25 25 25 Average Capacity 20 | 7 14 19 19 20 20 20 20 20 20 20 20 20 20 20 20 20 20 20 20 24 25 24 Most Carried 25 | 8 15 20 20 20 20 20 20 20 19 19 20 20 20 20 20 20 20 20 20 25 25 25 Average Carried 20 | 4 13 18 19 19 19 19 20 19 18 19 19 19 19 19 19 20 19 19 19 23 24 23 Final Capacity 25 | 8 15 20 20 20 20 20 20 20 20 20 20 20 20 20 20 20 20 20 20 25 25 5 Final Carried 25 | 8 15 20 20 20 20 20 20 18 19 19 20 18 19 20 20 20 20 20 20 25 22 4 Class Distribution -------------------- 47% | Scavenger-Tank 38% | Mutant 4% | Tank 4% | Commander-Tank Dominant Class ---------------- Mutant | -10/Materials Mutant | -10/Subcaves Mutant | -8/Scraptown Derelict-Tank | -6/Factory Commander-Tank | -6/Extension Commander-Tank | -6/Cetus Tank | -6/Archives Tank | -6/Hub_04(d) Scavenger-Tank | -5/Factory Tank | -5/Upper Caves Scavenger-Tank | -5/Upper Caves Scavenger-Tank | -5/Zhirov Scavenger-Tank | -4/Proximity Caves Scavenger-Tank | -4/Factory Scavenger-Tank | -4/Armory Scavenger-Tank | -4/Lab Scavenger-Tank | -3/Research Scavenger-Tank | -3/Quarantine Scavenger-Tank | -2/Research Scavenger-Tank | -2/Testing Scavenger-Tank | -1/Access Scavenger-Tank | -1/Command Resources | -11 -10 -10 -8 -6 -6 -6 -6 -6 -5 -5 -5 -5 -4 -4 -4 -4 -3 -3 -2 -2 -1 -1 ----------- Run | Yrd Mat Sub Scr Fac Ext Cet Arc Hub Fac Upp Upp Zhi Pro Fac Arm Lab Res Qua Res Tes Acc Com Matter Collected 15065 | 344 228 593 130 174 687 254 . 75 192 46 241 327 400 290 3555 . 458 198 766 389 852 4866 Remotely 1514 | . . . . . . . . . . . . . . . . . . . . . . 1514 Salvage Created 23143 | 152 429 330 . 138 1031 153 . 598 195 309 625 . 321 486 3947 . 71 406 1452 444 868 11188 Parts 950 | 13 19 17 . 6 34 11 . 13 5 4 29 . 14 21 164 . 3 22 70 24 56 425 Haulers Intercepted 3 | . 1 . . 1 . . . 1 . . . . . . . . . . . . . . Recyclers Shooed 7 | . . . . . . . . . . . . . . . . . . 2 3 1 1 . Parts Field Recycled . | . . . . . . . . . . . . . . . . . . . . . . . Retrieved Matter . | . . . . . . . . . . . . . . . . . . . . . . . Parts Self-Destructed 40 | . . 25 . . . . . . . . 9 . 6 . . . . . . . . . Prevented 23 | . . . . . . . . . . 1 14 . 8 . . . . . . . . . Parts Restored . | . . . . . . . . . . . . . . . . . . . . . . . Kills | -11 -10 -10 -8 -6 -6 -6 -6 -6 -5 -5 -5 -5 -4 -4 -4 -4 -3 -3 -2 -2 -1 -1 ------- Run | Yrd Mat Sub Scr Fac Ext Cet Arc Hub Fac Upp Upp Zhi Pro Fac Arm Lab Res Qua Res Tes Acc Com Combat Hostiles Destroyed 319 | . 4 12 . 1 13 1 . 5 3 . 12 . 5 5 62 . 1 5 14 5 11 160 Melee 2 | . . . . . . . . . . . . . . . . . . . . . . 2 Guns 45 | . 3 1 . . 3 . . . 1 . 3 . 2 2 8 . 1 1 1 . 5 14 Cannons 119 | . 1 11 . 1 4 . . 2 . . 1 . 1 3 26 . . 4 12 5 5 43 AOE 73 | . . . . . 3 . . . . . 8 . . . 15 . . . 1 . 1 45 Classes Destroyed 25 | 3 5 1 . 1 2 . . 2 . . 1 . 2 1 4 . . . . . . 3 Worker 26 | 1 1 . . 1 . . . 2 . . . . . . . . . . 6 . 1 14 Builder 8 | . 1 . . . . . . 3 . . . . . . . . . . 2 . 2 . Tunneler 2 | 2 . . . . . . . . . . . . . . . . . . . . . . Hauler 3 | . 1 . . 1 . . . 1 . . . . . . . . . . . . . . Recycler 19 | 1 2 . . . 2 . . 1 . . . . . 1 . . . 1 3 1 1 6 Mechanic 7 | . . . . . . . . . . . . . . . 1 . . . . . . 6 Operator 5 | . . . . . . . . 1 . . . . . . 1 . . . 1 . 1 1 Watcher 22 | . 3 . . . 1 2 . 1 . . . . . 1 6 . 1 . 2 1 1 3 Swarmer 27 | . 2 3 . . 4 . . . . . 4 . . . 8 . . . . . . 6 Saboteur 13 | . . . . . . . . . . . . . . . 1 . . . . . . 12 Grunt 93 | . 2 2 . . 2 . . 3 2 . 5 . . 1 13 . . . 3 . 4 56 Brawler 14 | . . . . . . . . . . . . . . . . . . . . . . 14 Duelist 18 | . . . . . . . . . . . . . . . 8 . . . . . . 10 Protector 12 | . . . . . . . . . . . . . 1 . 2 . . . . . . 9 Sentry 25 | . . . . . 7 . . 1 1 . . . 1 2 8 . . . 2 . . 3 Demolisher 1 | . . . . . . . . . . . . . 1 . . . . . . . . . Specialist 10 | . . . . . . . . . . . . . . . 8 . . . . . . 2 Hunter 16 | . . . . . . . . 1 . . . . 2 1 2 . 1 . . . . 9 Programmer 63 | . . . . 1 . . . . . . 2 . . . 9 . . 5 7 5 6 28 Heavy 7 | . . . . . . . . . . . . . . 1 2 . . . 2 . . 2 Behemoth 1 | . . . . . . . . . . . 1 . . . . . . . . . . . Armor Guard 1 | . . . . . . . . . . . . . . . 1 . . . . . . . Cetus Guard 1 | . . . . . . 1 . . . . . . . . . . . . . . . . Investigator 2 | . . . . . . . . . . . . . . . . . . . . . . 2 Striker 3 | . . . . . . . . . . . . . . . . . . . . . . 3 Executioner 6 | . . . . . . . . . . . . . . . . . . . . . . 6 Subdweller 7 | . . 7 . . . . . . . . . . . . . . . . . . . . Decomposer 2 | . . . . . . . . . . . 2 . . . . . . . . . . . Packrat 4 | . . . . . . . . . . 4 . . . . . . . . . . . . Savage 1 | . . . . . 1 . . . . . . . . . . . . . . . . . Best Kill Streak 27 | 2 3 3 . 1 4 2 . 7 2 . 9 . 2 3 14 . 1 3 6 2 4 27 Combat Bots Only 23 | . 1 3 . 1 4 1 . 3 2 . 9 . 2 3 13 . 1 3 4 2 4 23 Max Kills in Single Turn 5 | 1 1 1 . 1 3 1 . 4 1 1 2 . 1 1 4 . 1 1 2 2 2 5 Gunslinging . | . . . . . . . . . . . . . . . . . . . . . . . Exploded 4 | . . . . . 3 . . . . . 2 . . . 4 . . . 1 . 1 4 Melee 1 | . . . . . . . . . . . . . . . . . . . . . . 1 Uniques/NPCs Destroyed 1 | . . . . . . . . . . . . . . . . . . . . . 1 . 6S-H0T (-1/Access) Combat | -11 -10 -10 -8 -6 -6 -6 -6 -6 -5 -5 -5 -5 -4 -4 -4 -4 -3 -3 -2 -2 -1 -1 -------- Run | Yrd Mat Sub Scr Fac Ext Cet Arc Hub Fac Upp Upp Zhi Pro Fac Arm Lab Res Qua Res Tes Acc Com Hostile Shots Fired 1658 | . 16 59 . 2 139 20 . 21 6 . 34 . 7 64 262 . 8 10 60 14 179 757 Missed 525 | . 3 18 . 1 69 11 . 7 4 . 12 . 1 20 92 . 1 4 28 3 18 233 Hits 1133 | . 13 41 . 1 70 9 . 14 2 . 22 . 6 44 170 . 7 6 32 11 161 524 Melee 19 | . . . . . . . . . . . . . . . 1 . . . . . . 18 Projectile 1114 | . 13 41 . 1 70 9 . 14 2 . 22 . 6 44 169 . 7 6 32 11 161 506 AOE 6 | . . . . . . . . . . . . . 5 . . . . . . . . 1 Critical Strikes 70 | . . . . . . 2 . 1 . . . . . 1 5 . . . 2 1 29 29 Actively Blocked 46 | . . . . . . . . . . . . . . . . . . . . . 21 25 Part Disruptions 9 | . . . . . . . . . . . . . . . 7 . . . . 2 . . Damage Taken 21747 | . 132 704 . 15 725 244 240 374 164 . 343 464 242 991 2693 . 192 151 559 125 2382 11007 Core 2246 | . 29 73 . . 117 56 . 18 . . . 95 . 24 158 . . 16 26 23 132 1479 Absorbed by Shields 6638 | . . . . . 81 58 . . . . 83 76 70 263 832 . 68 54 534 132 1021 3366 Reduced by Siege Mode 999 | . . . . . . . . . . . . . 33 51 105 . . . 19 3 194 594 Regen/Repaired (Parts) 31 | . . . . . . . . . . . . . . 31 . . . . . . . . Core Remaining (%) 85 | 100 . . 59 . . . . 77 . . . . 90 . . 84 . 98 . 88 . . Volleys Fired 1031 | 6 37 64 . 5 39 16 . 28 9 3 24 3 48 20 150 . 16 30 68 23 57 385 Largest 4 | 2 2 2 . 2 3 1 . 2 3 1 3 1 4 4 4 . 4 4 4 4 4 4 Hottest 325 | 70 80 113 . 28 53 50 . 105 185 80 115 80 325 276 278 . 276 278 286 286 294 316 Shots Fired 2048 | 12 72 104 . 6 94 16 . 37 24 5 41 3 75 62 347 . 41 55 141 59 165 689 Gun 838 | 12 64 35 . 1 70 4 . . 13 5 23 3 51 29 79 . 15 18 47 26 68 275 Cannon 973 | . 8 69 . . . . . 21 4 . . . 13 33 220 . 26 37 86 33 95 328 Launcher 172 | . . . . . 1 11 . . . . 9 . 7 . 48 . . . 8 . 2 86 Special 65 | . . . . 5 23 1 . 16 7 . 9 . 4 . . . . . . . . . Kinetic 909 | 6 37 80 . 1 70 . . . 4 . 13 . 17 30 224 . 20 16 48 21 79 243 Thermal 731 | 6 35 24 . . . . . 21 13 5 10 3 47 32 75 . 21 39 85 38 84 193 Explosive 52 | . . . . . . . . . . . . . . . 5 . . . 7 . 2 38 Electromagnetic 291 | . . . . . 1 15 . . . . 9 . 7 . 43 . . . 1 . . 215 Impact 61 | . . . . 5 20 . . 16 7 . 9 . 4 . . . . . . . . . Robot Hit Streak 29 | 8 8 14 . 5 15 7 . 7 6 . 15 . 17 16 15 . 10 7 18 7 13 29 Robot Miss Streak 5 | 1 5 2 . 1 3 4 . 1 2 . 2 . 3 2 4 . 4 2 2 4 3 5 Penetration Max 1 | . . . . . . . . . . . . . . 1 1 . . . . 1 1 . Secondary Targets . | . . . . . . . . . . . . . . . . . . . . . . . Shots Hit Robots 1079 | 10 41 54 . 7 72 6 . 25 13 4 28 . 24 36 169 . 20 23 72 26 91 358 Core Hits 913 | 5 18 19 . 2 28 14 . 19 5 1 24 . 15 16 137 . 6 12 53 9 33 497 Critical Kills 28 | . . . . . 2 . . . 2 . . . 1 3 20 . . . . . . . Critical Parts Destroyed 28 | . . . . . 4 . . . . . 1 . . 3 17 . 2 . . . 1 . Critical Strikes 82 | . 2 1 . . 6 . . 2 2 . 1 . 2 7 42 . 2 . . 1 2 12 Burn 2 | . 2 . . . . . . . . . . . . . . . . . . . . . Meltdown 5 | . . . . . . . . . 1 . . . . . 4 . . . . . . . Destroy 51 | . . 1 . . . . . . 1 . 1 . 1 7 37 . 2 . . . 1 . Blast 12 | . . . . . . . . . . . . . . . 1 . . . . 1 1 9 Corrupt 3 | . . . . . . . . . . . . . . . . . . . . . . 3 Smash 7 | . . . . . 6 . . . . . . . 1 . . . . . . . . . Sever 2 | . . . . . . . . 2 . . . . . . . . . . . . . . Melee Attacks 20 | . . . . 8 . . . 5 . 7 . . . . . . . . . . . . Impact . | . . . . . . . . . . . . . . . . . . . . . . . Slashing 20 | . . . . 8 . . . 5 . 7 . . . . . . . . . . . . Piercing . | . . . . . . . . . . . . . . . . . . . . . . . Sneak Attacks 6 | . . . . 1 . . . 1 . 4 . . . . . . . . . . . . Combat Hostiles . | . . . . . . . . . . . . . . . . . . . . . . . Follow-up Attacks . | . . . . . . . . . . . . . . . . . . . . . . . Damage Inflicted 64997 | 122 572 1192 . 441 2239 996 . 2197 619 311 1684 . 975 1225 8875 . 606 942 3388 1241 3497 33875 Guns 13086 | 122 485 421 . . 967 . . . 204 . 467 . 428 690 1467 . 201 432 897 510 1260 4535 Cannons 20337 | . 87 771 . . . . . 391 149 . . . 200 535 3382 . 405 510 1697 701 2173 9336 Explosions 27518 | . . . . . 85 996 . 639 37 . 669 . 215 . 4026 . . . 787 . 64 20000 Melee 679 | . . . . 108 . . . 260 . 311 . . . . . . . . . . . . Ramming 48 | . . . . . . . . . 7 . . . . . . . . . 7 30 . 4 Kinetic 16974 | 72 234 800 . . 967 . . . 51 . 229 . 190 524 3195 . 336 378 1358 610 1612 6418 Thermal 14927 | 50 338 392 . . . 441 . 453 302 . 238 . 438 701 2075 . 270 564 1236 601 1821 5007 Explosive 14212 | . . . . . . . . . . . . . . . 1107 . . . 711 . 64 12330 Electromagnetic 14828 | . . . . . 85 555 . 577 37 . 669 . 215 . 2498 . . . 76 . . 10116 Impact 3329 | . . . . 333 1187 . . 907 222 . 548 . 132 . . . . . . . . . Slashing 679 | . . . . 108 . . . 260 . 311 . . . . . . . . . . . . Piercing . | . . . . . . . . . . . . . . . . . . . . . . . Highest Corruption 33 | . 2 2 . . 1 1 1 33 1 1 2 2 2 . 8 8 . . 1 4 5 25 Average Corruption 5 | . 2 1 . . 1 1 1 2 1 1 1 2 2 . 5 8 . . 1 2 3 10 Corruption Purged 22 | . . 2 . . . . . . . . . . . . . . . . . . . 20 Corruption Blocked . | . . . . . . . . . . . . . . . . . . . . . . . Effects 394 | . 2 44 . . 3 4 1 3 1 8 12 8 12 . 28 . . . 2 15 27 224 Message Errors 93 | . 1 10 . . 2 4 . . . 2 2 2 3 . 5 . . . . 4 7 51 Matter Fused 89 | . . 14 . . 1 . . 1 . 1 3 1 1 . 3 . . . . 6 8 50 Heat Flow Errors 54 | . 1 5 . . . . 1 . . . 2 2 1 . 3 . . . 1 1 3 34 Energy Discharges 55 | . . 6 . . . . . 1 . 2 3 1 2 . 3 . . . . 2 4 31 Parts Rejected 1 | . . . . . . . . . . . . . . . . . . . . . . 1 Parts Fused 5 | . . 1 . . . . . . . . . . 1 . . . . . . . . 3 Data Loss (minor) 40 | . . 1 . . . . . . . . . 1 3 . 5 . . . 1 . 2 27 Data Loss (major) 15 | . . 3 . . . . . . 1 1 . . . . 4 . . . . 1 . 5 Misfires 20 | . . 4 . . . . . 1 . 2 1 . 1 . 1 . . . . 1 1 8 Alerts 8 | . . . . . . . . . . . . 1 . . 1 . . . . . . 6 Misdirections 1 | . . . . . . . . . . . . . . . . . . . . . . 1 Weapon Failures 13 | . . . . . . . . . . . 1 . . . 3 . . . . . 2 7 Overload Shots 7 | . . . . . . . . . . . . . 7 . . . . . . . . . Overflow Damage 2426 | . . 9 . 129 346 1 . 289 59 190 99 . . 7 75 . . 2 56 42 66 1056 Projectiles 1776 | . . 9 . 97 346 . . 239 59 . 99 . . 7 30 . . 2 38 42 66 742 Explosions 428 | . . . . . . 1 . 50 . . . . . . 45 . . . 18 . . 314 Melee 222 | . . . . 32 . . . . . 190 . . . . . . . . . . . . Knockbacks 73 | . . 4 . 1 1 . . 5 1 . 1 . 1 . 7 . 1 1 3 3 13 31 Impact 11 | . . . . 1 1 . . 4 1 . 1 . 1 . . . . . . 2 . . Kinetic 57 | . . 4 . . . . . . . . . . . . 7 . 1 1 3 1 12 28 Secondary 5 | . . . . . . . . 1 . . . . . . . . . . . . 1 3 Self-Inflicted Damage 782 | . . . . . . . . 109 . . 23 . . . 196 . . . 72 . . 382 Shots 47 | . . . . . . . . 2 . . 2 . . . 10 . . . 1 . . 32 Rammed 7 | . . . . . . . . . 1 . . . . . . . . . 1 2 1 2 Targets Rammed 7 | . . . . . . . . . 1 . . . . . . . . . 1 2 1 2 Kicked . | . . . . . . . . . . . . . . . . . . . . . . . Crushed . | . . . . . . . . . . . . . . . . . . . . . . . Highest Temperature 395 | 27 144 237 . . 14 11 109 290 184 140 256 218 372 114 358 . 138 268 231 395 357 354 Average Temperature 79 | 12 27 58 . . 4 8 59 70 66 78 67 118 113 29 99 . 50 118 70 100 104 85 Received Heat Transfer 1542 | . 60 171 . . 150 35 . 45 9 . 54 . . 128 164 . . . 28 . 52 646 Effects 11 | . . . . . . . . . . . . . . . 3 . . . . . 7 1 Energy Bleed 1 | . . . . . . . . . . . . . . . . . . . . . . 1 Interference 10 | . . . . . . . . . . . . . . . 3 . . . . . 7 . Siege Activations 59 | . . . . . . . . . . . . . 3 1 10 . . 2 6 2 8 27 Total Turns 2087 | . . . . . . . . . . . . . 122 20 153 . . 27 47 32 233 1453 Longest Duration 388 | . . . . . . . . . . . . . 88 20 35 . . 18 13 24 82 388 Martial Activations . | . . . . . . . . . . . . . . . . . . . . . . . Shielding Activations . | . . . . . . . . . . . . . . . . . . . . . . . Robots Disrupted 4 | . . . . . . . . . . . 1 . . . . . . . . . . 3 Combat Hostiles 3 | . . . . . . . . . . . . . . . . . . . . . . 3 Robots Corrupted 80 | . . . . . 4 1 . 6 1 . . . 2 . 9 . . . . . . 57 Combat Hostiles 75 | . . . . . 3 1 . 3 1 . . . 2 . 9 . . . . . . 56 Parts Fried 156 | . . . . . 4 . . 8 . . 4 . 2 . 22 . . . . . . 116 Impact Corruptions 22 | . . . . 2 7 . . 9 2 . 1 . . . . . . . . . . 1 Robots Melted 5 | . . . . . . . . . 1 . . . . . 4 . . . . . . . Combat Hostiles 5 | . . . . . . . . . 1 . . . . . 4 . . . . . . . Parts Melted 20 | . . . . . . . . 1 1 . . . . 1 4 . . . 1 . 3 9 Heat Transferred 14940 | 136 1073 555 . . . 300 . 496 333 . 259 . 428 777 2039 . 296 518 1258 592 1421 4459 Parts Sabotaged 6 | . . . . . . . . . . . . . . . 2 . . . . . . 4 Parts Stolen . | . . . . . . . . . . . . . . . . . . . . . . . Parts Stripped . | . . . . . . . . . . . . . . . . . . . . . . . Power Chain Reactions 30 | . . . . . 1 3 . 1 . . 1 . . . 7 . . . . . . 17 Alert | -11 -10 -10 -8 -6 -6 -6 -6 -6 -5 -5 -5 -5 -4 -4 -4 -4 -3 -3 -2 -2 -1 -1 ------- Run | Yrd Mat Sub Scr Fac Ext Cet Arc Hub Fac Upp Upp Zhi Pro Fac Arm Lab Res Qua Res Tes Acc Com Maximum Alert Level 5 | . . . . . 3 2 1 2 2 . . . . 3 5 . . . 1 . . 5 Low Security (%) 50 | 100 100 . . 100 71 . 18 99 . . . . . 66 . . 100 100 81 100 100 16 Level 1 8 | . . . . . 5 2 81 . 98 . . . . 10 23 . . . 18 . . 3 Level 2 12 | . . . . . 19 97 . . 1 . . . . 21 15 . . . . . . 18 Level 3 10 | . . . . . 3 . . . . . . . . 1 18 . . . . . . 24 Level 4 6 | . . . . . . . . . . . . . . . 26 . . . . . . 11 Level 5 5 | . . . . . . . . . . . . . . . 6 . . . . . . 14 High Security 4 | . . . . . . . . . . . . . . . 10 . . . . . . 11 Max Security . | . . . . . . . . . . . . . . . . . . . . . . . Peak Influence 4109 | 10 37 . . 38 741 570 383 482 408 . . . . 714 1874 . 22 81 248 137 108 4109 Initial 410 | . . . . . 8 410 190 77 236 . . . . . 331 . . . 26 137 17 27 Average 539 | . 5 . . 8 173 486 254 89 337 . . . . 190 957 . 1 16 139 72 42 1102 Influence Increases 13595 | 20 193 120 . 120 1236 348 243 596 299 . 323 . 100 856 2073 . 88 277 854 240 530 5079 Destroy 0b10 Robot/C 6920 | . 80 100 . 60 620 140 120 140 100 . 240 . 80 280 1200 . 20 100 280 100 200 3060 Destroy 0b10 Robot/NC 605 | 20 40 . . 10 30 10 . 55 . . . . 5 70 50 . 5 5 70 10 30 195 Destroy Leader 1250 | . 28 20 . 22 64 . . 36 30 . 40 . 10 80 264 . 2 20 84 22 42 486 Allied During Kill 879 | . . . . 8 464 150 120 17 13 . 28 . 5 74 . . . . . . . . Successful Hack 233 | . 15 . . . 31 7 . 18 . . . . . . 12 . 35 37 3 21 30 24 Disable Machine 1005 | . 15 . . 15 . . . 210 90 . . . . 90 240 . . 75 30 30 45 165 Destroy Structure 2268 | . . . . 5 12 26 3 120 66 . . . . 262 262 . 26 40 357 57 183 849 Lose Combat Pursuer 435 | . 15 . . . 15 15 . . . . 15 . . . 45 . . . 30 . . 300 Influence Decreases 9496 | 20 193 90 30 102 521 605 496 336 485 297 323 . 100 178 877 1874 88 230 657 454 517 1023 Entered New Map 3531 | . . . 30 . 10 323 286 146 247 111 . . . . 347 1874 . . 21 107 13 16 Time Decay 5165 | 20 193 90 . 102 381 262 110 180 238 186 323 . 100 128 510 . 88 230 486 347 464 727 Lost Part 360 | . . . . . 10 . . 10 . . . . . . 20 . . . . . 40 280 Lost Ally 290 | . . . . . 120 20 100 . . . . . . 50 . . . . . . . . Purge Threat 150 | . . . . . . . . . . . . . . . . . . . 150 . . . Squads Dispatched 107 | . 2 . . 2 2 . . 5 3 . . . . 8 11 . 7 4 10 3 4 46 Investigation 8 | . 1 . . . 1 . . . . . . . . 1 1 . 2 . 2 . . . Extermination 31 | . . . . 1 . . . 1 1 . . . . 1 3 . . 3 3 2 4 12 Reinforcement 30 | . 1 . . 1 1 . . 4 2 . . . . 5 2 . 5 1 5 1 . 2 Assault 37 | . . . . . . . . . . . . . . . 5 . . . . . . 32 Garrison 1 | . . . . . . . . . . . . . . 1 . . . . . . . . Intercept . | . . . . . . . . . . . . . . . . . . . . . . . Searches Triggered . | . . . . . . . . . . . . . . . . . . . . . . . Unchained Authorized 1 | . . . . . . . . . . . . . . . . . . . . . 1 . Construction Impeded 7 | . . . . . 1 . . 1 . . . . . 2 . . . . 2 1 . . Haulers Reinforced 3 | . . . . 1 . . . 1 . . . . . 1 . . . . . . . . Active Scanning Responses . | . . . . . . . . . . . . . . . . . . . . . . . Cargo Convoy Interrupts 1 | . . . . . . . . . . . . . . 1 . . . . . . . . Stealth | -11 -10 -10 -8 -6 -6 -6 -6 -6 -5 -5 -5 -5 -4 -4 -4 -4 -3 -3 -2 -2 -1 -1 --------- Run | Yrd Mat Sub Scr Fac Ext Cet Arc Hub Fac Upp Upp Zhi Pro Fac Arm Lab Res Qua Res Tes Acc Com Distress Signals 50 | . 1 . . . 2 2 . . . . . . 26 3 5 . 6 1 3 1 . . Communications Jammed 43 | . . . . . . . . . . . . . . . . . . . . . . 43 Distress Signals 40 | . . . . . . . . . . . . . . . . . . . . . . 40 Times Spotted 484 | . 16 13 . 2 26 9 . 9 7 . 13 . 5 22 69 . 10 8 23 7 18 227 Peak Tracking Total 26 | . 5 3 . 1 4 5 . 10 2 . 9 . 2 7 6 . 2 3 5 3 4 26 Tactical Retreats 14 | . 1 . . . 1 1 . . . . 1 . . . 2 . . . 2 . . 6 Traps | -11 -10 -10 -8 -6 -6 -6 -6 -6 -5 -5 -5 -5 -4 -4 -4 -4 -3 -3 -2 -2 -1 -1 ------- Run | Yrd Mat Sub Scr Fac Ext Cet Arc Hub Fac Upp Upp Zhi Pro Fac Arm Lab Res Qua Res Tes Acc Com Traps Triggered 9 | . 1 . . . 1 . . 1 . . . . . . 1 . . 1 1 . . 3 Indirectly 2 | . . . . . . . . 1 . . . . . . 1 . . . . . . . Trap Hack Attempts . | . . . . . . . . . . . . . . . . . . . . . . . Triggered . | . . . . . . . . . . . . . . . . . . . . . . . Disarmed 4 | . . . . . . . . . . . . . . . . . . 4 . . . . Reprogrammed . | . . . . . . . . . . . . . . . . . . . . . . . Reused . | . . . . . . . . . . . . . . . . . . . . . . . Traps Extracted . | . . . . . . . . . . . . . . . . . . . . . . . Installed . | . . . . . . . . . . . . . . . . . . . . . . . Triggered . | . . . . . . . . . . . . . . . . . . . . . . . Most Traps Carried 1 | . . 1 1 . . . . . . . . . . . . . . . . . . . Machines | -11 -10 -10 -8 -6 -6 -6 -6 -6 -5 -5 -5 -5 -4 -4 -4 -4 -3 -3 -2 -2 -1 -1 ---------- Run | Yrd Mat Sub Scr Fac Ext Cet Arc Hub Fac Upp Upp Zhi Pro Fac Arm Lab Res Qua Res Tes Acc Com Machines Disabled 76 | . 1 . . 1 2 . . 14 6 . . 1 6 6 16 . . 5 2 2 3 11 Max in Single Turn 13 | . 1 . . 1 . . . 13 2 . . 1 2 1 2 . . 1 1 1 1 1 Garrison Access 3 | . . . . . . . . . 1 . . . . 1 . . 1 . . . . . Network Hub 1 | . . . . . . . . 1 . . . . . . . . . . . . . . Energy Cycler 1 | . . . . . 1 . . . . . . . . . . . . . . . . . Machines Repaired . | . . . . . . . . . . . . . . . . . . . . . . . Machines Dismantled . | . . . . . . . . . . . . . . . . . . . . . . . Machines Sabotaged . | . . . . . . . . . . . . . . . . . . . . . . . Overloaded Fab Kills . | . . . . . . . . . . . . . . . . . . . . . . . Hacking | -11 -10 -10 -8 -6 -6 -6 -6 -6 -5 -5 -5 -5 -4 -4 -4 -4 -3 -3 -2 -2 -1 -1 --------- Run | Yrd Mat Sub Scr Fac Ext Cet Arc Hub Fac Upp Upp Zhi Pro Fac Arm Lab Res Qua Res Tes Acc Com Machines Accessed 71 | . 7 1 4 2 5 1 1 3 2 1 1 4 . 2 3 . 8 5 5 3 6 7 Terminals 40 | . 6 . . 1 5 1 . 3 . . . . . . 1 . 5 4 5 2 3 4 Fabricators 2 | . . . . 1 . . . . . . . . . . 1 . . . . . . . Repair Stations 6 | . . . . . . . . . 1 . . . . 1 1 . . . . 1 . 2 Recycling Units 2 | . 1 . . . . . . . . . . . . . . . . . . . . 1 Scanalyzers 3 | . . . . . . . . . . . . . . . . . 2 . . . 1 . Garrison Access 6 | . . . . . . . . . 1 . . . . 1 . . 1 1 . . 2 . Total Hacks 213 | . 17 4 32 4 9 2 4 7 4 1 1 16 . 6 6 . 32 19 22 8 8 11 Successful 117 | . 8 4 32 1 4 1 4 4 2 1 1 16 . 2 4 . 14 9 3 1 4 2 Failed 96 | . 9 . . 3 5 1 . 3 2 . . . . 4 2 . 18 10 19 7 4 9 Catastrophic 23 | . 1 . . . 3 1 . . . . . . . . 1 . 4 1 2 2 3 5 Database Lockouts . | . . . . . . . . . . . . . . . . . . . . . . . Manual 72 | . 17 . . . . 1 . 5 . . . . . 3 . . 19 10 10 4 . 3 Terminals 117 | . 16 . . 2 9 2 . 7 . . . . . . 2 . 25 17 22 6 3 6 Fabricators 4 | . . . . 2 . . . . . . . . . . 2 . . . . . . . Repair Stations 13 | . . . . . . . . . 3 . . . . 3 2 . . . . 2 . 3 Recycling Units 3 | . 1 . . . . . . . . . . . . . . . . . . . . 2 Scanalyzers 8 | . . . . . . . . . . . . . . . . . 6 . . . 2 . Garrison Access 10 | . . . . . . . . . 1 . . . . 3 . . 1 2 . . 3 . Terminal Hacks 87 | . 3 4 32 . 4 1 4 2 . 1 1 16 . . 1 . 6 6 2 1 3 . Record 44 | . . 4 32 . . . 4 . . . . 4 . . . . . . . . . . Part Schematic 4 | . . . . . . . . . . . . 4 . . . . . . . . . . Robot Analysis 6 | . 2 . . . . . . . . . . 4 . . . . . . . . . . Prototype ID Bank 4 | . . . . . . . . . . . . 4 . . . . . . . . . . Open Door 9 | . . . . . 3 1 . . . 1 1 . . . . . . . . . 3 . Level Access Points 2 | . . . . . . . . 1 . . . . . . . . . 1 . . . . Branch Access Points 3 | . . . . . . . . . . . . . . . . . 1 1 1 . . . Emergency Access Points 1 | . . . . . . . . . . . . . . . . . 1 . . . . . Terminal Index 1 | . . . . . . . . . . . . . . . . . 1 . . . . . Unreport Threat 1 | . . . . . . . . . . . . . . . . . . . 1 . . . Locate Traps 4 | . . . . . 1 . . 1 . . . . . . . . 1 1 . . . . Disarm Traps 1 | . . . . . . . . . . . . . . . . . . 1 . . . . Maintenance Status 1 | . . . . . . . . . . . . . . . . . 1 . . . . . Hauler Manifests 1 | . 1 . . . . . . . . . . . . . . . . . . . . . Zone Layout 5 | . . . . . . . . . . . . . . . 1 . 1 2 . 1 . . Fabricator Hacks 3 | . . . . 1 . . . . . . . . . . 2 . . . . . . . Network Status 1 | . . . . 1 . . . . . . . . . . . . . . . . . . Load Schematic 1 | . . . . . . . . . . . . . . . 1 . . . . . . . Build 1 | . . . . . . . . . . . . . . . 1 . . . . . . . Repair Station Hacks 3 | . . . . . . . . . 1 . . . . . 1 . . . . . . 1 Scan Component 3 | . . . . . . . . . 1 . . . . . 1 . . . . . . 1 Recycling Unit Hacks 2 | . 1 . . . . . . . . . . . . . . . . . . . . 1 Retrieve Components 2 | . 1 . . . . . . . . . . . . . . . . . . . . 1 Scanalyzer 4 | . . . . . . . . . . . . . . . . . 3 . . . 1 . Insert Component 1 | . . . . . . . . . . . . . . . . . 1 . . . . . Retrieve Study 3 | . . . . . . . . . . . . . . . . . 2 . . . 1 . Garrison Access Hacks 3 | . . . . . . . . . 1 . . . . 1 . . 1 . . . . . Seal Access 3 | . . . . . . . . . 1 . . . . 1 . . 1 . . . . . Unauthorized Hacks 15 | . 4 . . . . . . 2 . . . . . 1 . . 4 3 1 . . . Terminals 14 | . 4 . . . . . . 2 . . . . . . . . 4 3 1 . . . Track 3 | . . . . . . . . 1 . . . . . . . . . 2 . . . . Assimilate 1 | . . . . . . . . . . . . . . . . . . 1 . . . . Botnet 6 | . 2 . . . . . . 1 . . . . . . . . 2 . 1 . . . Disrupt 1 | . 1 . . . . . . . . . . . . . . . . . . . . . Operators 2 | . 1 . . . . . . . . . . . . . . . 1 . . . . . Skim 1 | . . . . . . . . . . . . . . . . . 1 . . . . . Fabricators . | . . . . . . . . . . . . . . . . . . . . . . . Repair Stations 1 | . . . . . . . . . . . . . . 1 . . . . . . . . Patch 1 | . . . . . . . . . . . . . . 1 . . . . . . . . Recycling Units . | . . . . . . . . . . . . . . . . . . . . . . . Scanalyzers . | . . . . . . . . . . . . . . . . . . . . . . . Garrison Access . | . . . . . . . . . . . . . . . . . . . . . . . Data Cores Recovered . | . . . . . . . . . . . . . . . . . . . . . . . Used . | . . . . . . . . . . . . . . . . . . . . . . . Hacking Detections 50 | . 7 . . 2 3 1 . 3 1 . . . . 2 2 . 7 5 5 2 3 7 Full Trace Events 3 | . 1 . . . 1 . . . . . . . . . . . . . 1 . . . Feedback Events . | . . . . . . . . . . . . . . . . . . . . . . . Feedback Blocked . | . . . . . . . . . . . . . . . . . . . . . . . Robot Schematics Acquired . | . . . . . . . . . . . . . . . . . . . . . . . Robots Built . | . . . . . . . . . . . . . . . . . . . . . . . Authchips . | . . . . . . . . . . . . . . . . . . . . . . . Time . | . . . . . . . . . . . . . . . . . . . . . . . Total Robot Build Rating . | . . . . . . . . . . . . . . . . . . . . . . . Part Schematics Acquired 4 | . . . . . . . . . . . . 4 . . . . . . . . . . Parts Built 1 | . . . . . . . . . . . . . . . 1 . . . . . . . Authchips 1 | . . . . . . . . . . . . . . . 1 . . . . . . . Time 93 | . . . . . . . . . . . . . . . 93 . . . . . . . Total Part Build Rating 7 | . . . . . . . . . . . . . . . 7 . . . . . . . Part Studies Acquired 3 | . . . . . . . . . . . . . . . . . 2 . . . 1 . Parts Repaired . | . . . . . . . . . . . . . . . . . . . . . . . Time . | . . . . . . . . . . . . . . . . . . . . . . . Parts Recycled . | . . . . . . . . . . . . . . . . . . . . . . . Recycled Matter . | . . . . . . . . . . . . . . . . . . . . . . . Retrieved Matter . | . . . . . . . . . . . . . . . . . . . . . . . Retrieved Components 17 | . 7 . . . . . . . . . . . . . . . . . . . . 10 Parts Scanalyzed . | . . . . . . . . . . . . . . . . . . . . . . . Part Schematics Acquired . | . . . . . . . . . . . . . . . . . . . . . . . Parts Damaged . | . . . . . . . . . . . . . . . . . . . . . . . Bothacking | -11 -10 -10 -8 -6 -6 -6 -6 -6 -5 -5 -5 -5 -4 -4 -4 -4 -3 -3 -2 -2 -1 -1 ------------ Run | Yrd Mat Sub Scr Fac Ext Cet Arc Hub Fac Upp Upp Zhi Pro Fac Arm Lab Res Qua Res Tes Acc Com Used RIF Installer . | . . . . . . . . . . . . . . . . . . . . . . . Robots Hacked . | . . . . . . . . . . . . . . . . . . . . . . . Non-combat . | . . . . . . . . . . . . . . . . . . . . . . . Combat . | . . . . . . . . . . . . . . . . . . . . . . . Robot Hacks Applied . | . . . . . . . . . . . . . . . . . . . . . . . Relay Couplers Released 4 | . . . . . . . . . . . . . . . . . . . 4 . . . Programmers 4 | . . . . . . . . . . . . . . . . . . . 4 . . . Fabnet Peak Effective % . | . . . . . . . . . . . . . . . . . . . . . . . Robots Rewired 17 | . . . . . 15 . . . . . . . 2 . . . . . . . . . Allies Hacked . | . . . . . . . . . . . . . . . . . . . . . . . Hacks Repelled . | . . . . . . . . . . . . . . . . . . . . . . . Allies | -11 -10 -10 -8 -6 -6 -6 -6 -6 -5 -5 -5 -5 -4 -4 -4 -4 -3 -3 -2 -2 -1 -1 -------- Run | Yrd Mat Sub Scr Fac Ext Cet Arc Hub Fac Upp Upp Zhi Pro Fac Arm Lab Res Qua Res Tes Acc Com Total Allies 29 | . . . 1 . 21 5 . . . . . . 2 . . . . . . . . . Largest Group 19 | . . . 1 1 14 19 18 1 1 1 1 1 2 2 . . . . . . . . Highest-Rated Group 1059 | . . . 62 62 589 1059 1013 59 59 59 59 52 98 98 . . . . . . . . Highest-Rated Ally 159 | . . . 62 62 159 159 159 59 59 59 59 52 52 49 . . . . . . . . Total Orders 53 | . . . 2 . 6 17 1 3 2 3 8 1 3 7 . . . . . . . . STAY 29 | . . . 1 . 3 8 1 2 1 2 4 1 2 4 . . . . . . . . FOLLOW 24 | . . . 1 . 3 9 . 1 1 1 4 . 1 3 . . . . . . . . Ally Attacks 310 | . . . . 3 153 48 35 16 8 . 15 . 3 29 . . . . . . . . Total Damage 8815 | . . . . 95 2863 1067 740 471 371 . 317 . 61 2830 . . . . . . . . Kills 63 | . . . . 2 22 6 6 4 2 . . . . 21 . . . . . . . . Allies Corrupted . | . . . . . . . . . . . . . . . . . . . . . . . Allies Melted . | . . . . . . . . . . . . . . . . . . . . . . . Intel | -11 -10 -10 -8 -6 -6 -6 -6 -6 -5 -5 -5 -5 -4 -4 -4 -4 -3 -3 -2 -2 -1 -1 ------- Run | Yrd Mat Sub Scr Fac Ext Cet Arc Hub Fac Upp Upp Zhi Pro Fac Arm Lab Res Qua Res Tes Acc Com Active Infowar (turns) 27899 | 52 1125 6237 4684 472 493 . 113 274 411 896 799 14 66 483 1133 13 551 796 1113 743 1457 5974 Sensors 8719 | . . . . . 493 . . . 411 896 799 14 66 483 1133 13 551 796 1113 703 1248 . IFF 126 | . . . . . . . . 126 . . . . . . . . . . . . . . Zeronet 433 | . . . . . . . . . . . . . . . . . . . . . 10 423 Terrain 355 | . . . . . . . . . . . . . . . . . . . . . 355 . Structural 369 | . . . . 369 . . . . . . . . . . . . . . . . . . Seismic 12828 | 52 1125 6237 4684 468 1 . 113 148 . . . . . . . . . . . . . . Jamming 7334 | . . . . . . . . . . . . . . . . . . . . 40 1320 5974 ECM 2 | . . . . . . . . . . . . . . . . . . . . . . 2 Robot Analysis Total 6 | . 2 . . . . . . . . . . 4 . . . . . . . . . . Derelict Logs Recovered 7 | . . 2 3 . . . . . . 1 . . 1 . . . . . . . . . Drone Launches 2 | . . . . . . . . . . . . . . 2 . . . . . . . . Drone Recoveries 1 | . . . . . . . . . . . . . . 1 . . . . . . . . Exploration | -11 -10 -10 -8 -6 -6 -6 -6 -6 -5 -5 -5 -5 -4 -4 -4 -4 -3 -3 -2 -2 -1 -1 ------------- Run | Yrd Mat Sub Scr Fac Ext Cet Arc Hub Fac Upp Upp Zhi Pro Fac Arm Lab Res Qua Res Tes Acc Com Turns Passed 33446 | 133 1178 6482 4783 481 1363 562 220 375 518 900 922 618 724 577 1549 13 788 896 1271 781 1459 6853 Spaces Moved 14853 | 60 628 2497 2664 257 657 251 44 161 280 532 503 336 267 299 578 9 428 460 614 412 639 2277 Core 195 | 2 . . 98 . . . . . . . . . . . . . . . . . . 95 Treads 10794 | 55 628 1214 . 245 657 251 44 161 280 532 503 336 267 299 578 9 428 460 614 412 639 2182 Legs 2124 | . . 1283 841 . . . . . . . . . . . . . . . . . . . Wheels 1740 | 3 . . 1725 12 . . . . . . . . . . . . . . . . . . Hover . | . . . . . . . . . . . . . . . . . . . . . . . Flight . | . . . . . . . . . . . . . . . . . . . . . . . Fastest Speed 50 | 50 160 160 50 130 160 160 160 160 160 160 160 160 160 160 160 160 155 155 155 155 155 50 Average Speed 175 | 153 160 231 158 158 160 160 160 160 160 160 160 160 160 160 160 160 159 155 155 155 155 186 Slowest Speed 260 | 160 160 260 260 160 160 160 160 160 160 160 160 240 160 160 240 160 160 155 240 155 232 247 Overloaded Moves . | . . . . . . . . . . . . . . . . . . . . . . . Propulsion Burnouts . | . . . . . . . . . . . . . . . . . . . . . . . Robots Hopped . | . . . . . . . . . . . . . . . . . . . . . . . Potential Cave-ins 5 | . . . . . . . . . . . . . . . . . . . 5 . . . Cave-ins Triggered . | . . . . . . . . . . . . . . . . . . . . . . . Teleports 1 | . . . . . . . . . . . . . . . . . . . 1 . . . Exploration Rate (%) 44 | 4 95 79 85 7 82 73 73 18 9 86 68 71 35 9 54 5 11 45 22 47 11 44 Regions Visited 22 Branch Regions 15 Pre-discovered Areas 11 | . . 2 6 . . . . . . . . 3 . . . . . . . . . . Known Exits Taken 19 | . . . 1 1 1 1 1 1 1 1 1 1 1 1 1 1 1 1 1 1 1 . Unknown Exits Taken 3 | 1 1 1 . . . . . . . . . . . . . . . . . . . . Scrap Searched 13 | . . 3 6 . . . . . . 2 2 . . . . . . . . . . . Spaces Dug 107 | . . 1 . 5 . . . . . 4 2 . 6 6 17 . 6 7 19 4 6 24 Terrain Destroyed 1074 | . . 4 . 5 5 18 . 165 6 5 16 1 8 13 142 . 19 21 148 19 59 420 Melee 8 | . . . . 5 . . . . . 3 . . . . . . . . . . . . Projectile 349 | . . 4 . . 1 . . 7 6 2 10 1 8 13 31 . 19 21 48 19 42 117 AOE 715 | . . . . . 4 18 . 158 . . 6 . . . 111 . . . 100 . 17 301 Terrain Rammed . | . . . . . . . . . . . . . . . . . . . . . . . Walls Destroyed . | . . . . . . . . . . . . . . . . . . . . . . . Machines Disabled . | . . . . . . . . . . . . . . . . . . . . . . . Actions | -11 -10 -10 -8 -6 -6 -6 -6 -6 -5 -5 -5 -5 -4 -4 -4 -4 -3 -3 -2 -2 -1 -1 --------- Run | Yrd Mat Sub Scr Fac Ext Cet Arc Hub Fac Upp Upp Zhi Pro Fac Arm Lab Res Qua Res Tes Acc Com Total 20959 | 85 731 3101 3255 318 893 399 193 234 325 565 585 412 499 351 967 8 510 606 854 523 1023 4522 Wait 3964 | . 48 489 466 3 87 96 149 21 19 20 38 37 146 13 112 . 35 100 122 64 265 1634 Move 14832 | 59 627 2496 2663 256 656 250 43 160 279 531 502 335 266 298 577 8 427 459 614 411 638 2277 Hop . | . . . . . . . . . . . . . . . . . . . . . . . Pick Up 229 | 9 8 16 55 14 3 10 . 1 3 . 5 6 6 5 20 . 4 4 4 5 11 40 Fast Attach 114 | 7 3 6 7 9 2 1 . 3 . . . 7 7 1 9 . 7 3 6 3 9 24 Attach 74 | . . 5 1 6 3 3 . 3 2 . 1 5 3 2 8 . 2 . 3 . 6 21 Detach 12 | . . . 1 . 1 . . 2 . . 1 1 1 . 1 . . . . . 1 3 Swap 305 | 3 2 10 5 1 18 9 1 6 12 4 9 6 4 9 63 . 6 4 27 10 21 75 Drop 275 | 1 6 15 57 16 4 14 . 5 . . 5 12 10 3 27 . 13 6 10 5 14 52 Fire 1031 | 6 37 64 . 5 39 16 . 28 9 3 24 3 48 20 150 . 16 30 68 23 57 385 Melee 20 | . . . . 8 . . . 5 . 7 . . . . . . . . . . . . Ram 3 | . . . . . . . . . . . . . . . . . . . . . . 3 Kick . | . . . . . . . . . . . . . . . . . . . . . . . Crush 4 | . . . . . . . . . 1 . . . . . . . . . . 2 1 . Escape Stasis 8 | . . . . . . . . . . . . . . . . . . . . . . 8 Rewire 88 | . . . . . 80 . . . . . . . 8 . . . . . . . . . Trap . | . . . . . . . . . . . . . . . . . . . . . . . Miscellaneous . | . . . . . . . . . . . . . . . . . . . . . . . Route ------- -11/Scrapyard -10/Materials (discovered 6 exits: [*Mat x3] / [*Min x2] / *Sub) -10/Subcaves (discovered 2 exits: [*Mat] / *Scr) -8/Scraptown (discovered 2 exits: *Fac x2) -6/Factory (discovered 8 exits: *Fac x4 / Low x2 / *Ext x2) -6/Extension (discovered 2 exits: *Fac / *Cet) -6/Cetus (discovered 2 exits: *Fac / *Arc) -6/Archives -6/Hub_04(d) (discovered 4 exits: *Fac x4) -5/Factory (discovered 2 exits: Fac / *Upp) -5/Upper Caves -5/Upper Caves (discovered 2 exits: *Fac / *Zhi) -5/Zhirov -4/Proximity Caves -4/Factory -4/Armory (discovered 2 exits: *Res / *Lab) -4/Lab -3/Research (discovered 3 exits: *Res / *Qua x2) -3/Quarantine -2/Research (discovered 2 exits: *Tes x2) -2/Testing -1/Access -1/Command History --------- Turn | Location | Event 27 | -11/Scrapyard | Discovered new exit (range 16) 134 | -11/Scrapyard | Entered Materials 135 | -10/Materials | Met a group of wandering Federalists 215 | -10/Materials | Discovered new exit (range 9) 307 | -10/Materials | Build established: Mutant 507 | -10/Materials | Discovered new exit (range 15) 599 | -10/Materials | Discovered new exit (range 12) 850 | -10/Materials | Discovered new exit (range 16) 1100 | -10/Materials | Discovered new exit (range 11) 1204 | -10/Materials | Discovered new exit (range 6) 1312 | -10/Materials | Entered Subcaves 1313 | -10/Subcaves | Continued accompanying wandering Federalists (2) 1313 | -10/Subcaves | Approached by a straggling Scientist 1338 | -10/Subcaves | Shifting Twisted Machinery released Sub. Optics 1348 | -10/Subcaves | Shifting Twisted Machinery released Sub. Machine Gun 1527 | -10/Subcaves | Discovered new exit (range 9) 1575 | -10/Subcaves | Wandering Federalist uncovered a shortcut to Scraptown 2745 | -10/Subcaves | Learned Materials non-interactive machine intel 2765 | -10/Subcaves | Shifting Twisted Machinery released Sub. Machine Gun 2777 | -10/Subcaves | Shifting Twisted Machinery released Flamer 3091 | -10/Subcaves | Learned location of Zion (-7) 3091 | -10/Subcaves | Met a Zionite searching for "candidates" 3179 | -10/Subcaves | Visited Clippyterm 3186 | -10/Subcaves | Learned Research security intel 3186 | -10/Subcaves | Learned location of Extension (-6) 3745 | -10/Subcaves | Shifting Twisted Machinery released Mak. Hacking Suite 3755 | -10/Subcaves | Shifting Twisted Machinery released Hvy. Riot Gun 3773 | -10/Subcaves | Learned Materials garrison access intel 5079 | -10/Subcaves | Disturbed a concealed Subdweller 5513 | -10/Subcaves | A swath of the cavern ceiling suddenly collapsed 6138 | -10/Subcaves | A swath of the cavern ceiling suddenly collapsed 7794 | -10/Subcaves | Entered Scraptown 8161 | -8/Scraptown | Visited Cave Peace 8200 | -8/Scraptown | Visited Cyclists 8221 | -8/Scraptown | Visited Red Mages 8294 | -8/Scraptown | Visited Assassins FH 8314 | -8/Scraptown | Visited Junk Repository 8434 | -8/Scraptown | Scanned Subdweller tech in exchange for log data 8476 | -8/Scraptown | Discovered new exit (range 11) 8871 | -8/Scraptown | Visited Spacefarers 8899 | -8/Scraptown | Visited UFD Registry 8899 | -8/Scraptown | Registered with UFD as "Flexiback" 8957 | -8/Scraptown | Visited Scrap Suit Storage 8993 | -8/Scraptown | Visited Curators Association 9066 | -8/Scraptown | Visited Botcube Research 9123 | -8/Scraptown | Visited Research Penetration Think Tank 9193 | -8/Scraptown | Visited Science Guys 9240 | -8/Scraptown | Visited Scrapoid Pod Storage 9289 | -8/Scraptown | Visited Chapter 10 9336 | -8/Scraptown | Visited Cartography Club 9706 | -8/Scraptown | Visited Junk Cannon Lab 9775 | -8/Scraptown | Found Prototype Special Weapon 10010 | -8/Scraptown | Found Surveybot 17 Chip 10027 | -8/Scraptown | Learned location of Lower Caves (-7) 10027 | -8/Scraptown | Learned location of Warlord (-4) 10027 | -8/Scraptown | Learned location of Cetus (-6) 10027 | -8/Scraptown | Learned location of Armory (-4) 10027 | -8/Scraptown | Learned 8 Materials zone layouts 10027 | -8/Scraptown | Learned 12 Factory zone layouts 10027 | -8/Scraptown | Learned 24 Factory zone layouts 10027 | -8/Scraptown | Learned 4 Access zone layouts 10027 | -8/Scraptown | Learned 4 Storage zone layouts 10027 | -8/Scraptown | Learned 20 Lower Caves zone layouts 10027 | -8/Scraptown | Learned 12 Upper Caves zone layouts 10027 | -8/Scraptown | Learned 20 Upper Caves zone layouts 10027 | -8/Scraptown | Learned 12 Proximity Caves zone layouts 10027 | -8/Scraptown | Learned 4 Hub_04(d) zone layouts 10027 | -8/Scraptown | Learned location of 1 exit from Factory 10027 | -8/Scraptown | Learned location of 3 exits from Factory 10027 | -8/Scraptown | Learned location of 3 exits from Proximity Caves 10027 | -8/Scraptown | Identified exit to Factory 10031 | -8/Scraptown | Found Deep Structural Scanner 10185 | -8/Scraptown | Identified Junk Cannon 10523 | -8/Scraptown | Entered Cyclist Reading Room 10677 | -8/Scraptown | Found Botcube 10731 | -8/Scraptown | Visited DA-N13 Charitable Foundation 10741 | -8/Scraptown | Found DCF Scrap (29 items) 10891 | -8/Scraptown | Found Scrap Suit 11655 | -8/Scraptown | Botcube activated 11677 | -8/Scraptown | Botcube completed mutation into treaded form, armed with 2 cannons. 12510 | -8/Scraptown | Met Optimus 12510 | -8/Scraptown | Accepted into 0bPrime 12577 | -8/Scraptown | Entered Factory 12577 | -6/Factory | Accompanied by 1 ally 12577 | -6/Factory | Evolved 8 slots: Propulsion x2, Utility x4, Weapon x2 12578 | -6/Factory | Identified exit to Factory 12578 | -6/Factory | Identified exit to Extension 12579 | -6/Factory | Identified exit to Lower Caves 12887 | -6/Factory | Build established: Derelict-Tank 13058 | -6/Factory | Entered Extension 13058 | -6/Extension | Accompanied by 1 ally 13452 | -6/Extension | Rescued A7 13554 | -6/Extension | Rescued a captive Derelict 13803 | -6/Extension | Build established: Commander-Tank 13896 | -6/Extension | Spotted B-75 Beast 13902 | -6/Extension | Allies destroyed B-75 Beast 13917 | -6/Extension | Spotted B-75 Beast 13928 | -6/Extension | Allies destroyed B-75 Beast 13986 | -6/Extension | Rescued a captive Derelict 13987 | -6/Extension | Rescued a captive Derelict 14079 | -6/Extension | Energy Cycler disabled 14080 | -6/Extension | Rescued a captive Derelict 14080 | -6/Extension | Rescued a captive Derelict 14080 | -6/Extension | Rescued a captive Derelict 14080 | -6/Extension | Rescued a captive Derelict 14324 | -6/Extension | Attached CPS modules to Mutated Botcube. 14334 | -6/Extension | Attached CPS modules to A7. 14363 | -6/Extension | Discovered exit to Factory (range 10) 14364 | -6/Extension | Discovered new exit (range 6) 14394 | -6/Extension | Identified exit to Cetus 14421 | -6/Extension | Entered Cetus 14421 | -6/Cetus | Accompanied by 14 allies (A7) 14426 | -6/Cetus | Acquired a Cetus Manufacturing Module code from A7 14461 | -6/Cetus | Spotted Cetus Guard 14461 | -6/Cetus | Spotted Cetus Guard 14463 | -6/Cetus | Spotted Cetus Guard 14463 | -6/Cetus | Spotted Cetus Guard 14467 | -6/Cetus | Attached CPS modules to Cetus Guard. 14474 | -6/Cetus | Allies destroyed Cetus Guard 14480 | -6/Cetus | Allies destroyed Cetus Guard 14482 | -6/Cetus | Destroyed Cetus Guard 14496 | -6/Cetus | Allies destroyed Cetus Guard 14685 | -6/Cetus | Started Cetus Manufacturing Module 14696 | -6/Cetus | Escorted A7 to Cetus Mainframe 14710 | -6/Cetus | Manufactured an Enhanced Grunt 14732 | -6/Cetus | Discovered new exit (range 16) 14735 | -6/Cetus | Manufactured an Enhanced Grunt 14760 | -6/Cetus | Manufactured an Enhanced Grunt 14785 | -6/Cetus | Manufactured an Enhanced Grunt 14810 | -6/Cetus | Manufactured an Enhanced Grunt 14810 | -6/Cetus | Spotted Cetus Guard 14810 | -6/Cetus | Spotted Cetus Guard 14815 | -6/Cetus | Spotted Cetus Guard 14815 | -6/Cetus | Spotted Cetus Guard 14817 | -6/Cetus | Allies destroyed Cetus Guard 14824 | -6/Cetus | Allies destroyed Cetus Guard 14826 | -6/Cetus | Allies destroyed Cetus Guard 14832 | -6/Cetus | Discovered exit to Factory (range 15) 14840 | -6/Cetus | Met Revision 17 14937 | -6/Cetus | Identified exit to Archives 14983 | -6/Cetus | Entered Archives 14983 | -6/Archives | Accompanied by 18 allies (A7) 14988 | -6/Archives | Received a hacking code to weaken MAIN.C 15001 | -6/Archives | Met Zhirov 15007 | -6/Archives | Reinforcements dispatched to Archives 15022 | -6/Archives | Read partially decrypted archive contents 15025 | -6/Archives | Discovered new exit (range 16) 15047 | -6/Archives | Identified exit to Hub_04(d) 15052 | -6/Archives | Reinforcements dispatched to Archives 15072 | -6/Archives | Zhirov detonated Archives 15103 | -6/Archives | Lost 16 allies 15203 | -6/Archives | Entered Hub_04(d) 15203 | -6/Hub_04(d) | Accompanied by 1 ally 15373 | -6/Hub_04(d) | Build established: Tank 15554 | -6/Hub_04(d) | System corruption reached 10% 15558 | -6/Hub_04(d) | System corruption reached 30% 15576 | -6/Hub_04(d) | Network Hub disabled 15578 | -6/Hub_04(d) | Entered Factory 15578 | -5/Factory | Accompanied by 1 ally 15578 | -5/Factory | Evolved 2 slots: Power x1, Utility x1 15579 | -5/Factory | Identified exit to Factory 15859 | -5/Factory | Build established: Scavenger-Tank 15898 | -5/Factory | Discovered new exit (range 16) 16065 | -5/Factory | Identified exit to Upper Caves 16096 | -5/Factory | Entered Upper Caves 16096 | -5/Upper Caves | Accompanied by 1 ally 16097 | -5/Upper Caves | Identified exit to Upper Caves 16383 | -5/Upper Caves | Build established: Tank 16996 | -5/Upper Caves | Entered another Upper Caves area 16996 | -5/Upper Caves | Accompanied by 1 ally 17000 | -5/Upper Caves | Discovered exit to Factory (range 15) 17056 | -5/Upper Caves | Destroyed 9 combat bots 17559 | -5/Upper Caves | Build established: Scavenger-Tank 17624 | -5/Upper Caves | Spotted B-75 Beast 17664 | -5/Upper Caves | Destroyed B-75 Beast 17877 | -5/Upper Caves | Discovered new exit (range 9) 17914 | -5/Upper Caves | Identified exit to Zhirov 17918 | -5/Upper Caves | Entered Zhirov 17918 | -5/Zhirov | Accompanied by 1 ally 17919 | -5/Zhirov | Discovered new exit (range 3) 17980 | -5/Zhirov | Learned location of Quarantine (-3) 17980 | -5/Zhirov | Learned location of Testing (-2) 17980 | -5/Zhirov | Learned location of Command (-1) 18035 | -5/Zhirov | Found Alien Artifact 18035 | -5/Zhirov | Identified Integrated Dissipator 18035 | -5/Zhirov | Installed Integrated Dissipator, increased core heat dissipation (+20) 18123 | -5/Zhirov | Found Alien Artifact 18347 | -5/Zhirov | Identified exit to Proximity Caves 18364 | -5/Zhirov | Cloak Generator disabled 18374 | -5/Zhirov | Enhanced Grunts warped into view 18425 | -5/Zhirov | Lost 4 allies 18536 | -5/Zhirov | Entered Proximity Caves 18536 | -4/Proximity Caves | Accompanied by 1 ally 18544 | -4/Proximity Caves | Learned Research stockpile data 18628 | -4/Proximity Caves | Found Botcube 18707 | -4/Proximity Caves | Found Prototype Launcher 18707 | -4/Proximity Caves | Identified Mni. Smartbomb Launcher 18712 | -4/Proximity Caves | Found Prototype Launcher 18712 | -4/Proximity Caves | Identified Rocket Array 19260 | -4/Proximity Caves | Entered Factory 19260 | -4/Factory | Accompanied by 2 allies 19260 | -4/Factory | Evolved 2 slots: Utility x2 19261 | -4/Factory | Identified exit to Armory 19811 | -4/Factory | Cargo convoy interrupted 19837 | -4/Factory | Entered Armory 19883 | -4/Armory | Found Prototype Processor 19883 | -4/Armory | Identified Exp. Signal Interpreter 20087 | -4/Armory | First assault squad dispatched 20200 | -4/Armory | Fabricated Assault Drone Bay (x1) 20496 | -4/Armory | Destroyed 7 combat bots 20537 | -4/Armory | Discovered new exit (range 10) 20596 | -4/Armory | Destroyed 8 combat bots 20872 | -4/Armory | Identified exit to Research 21155 | -4/Armory | Destroyed 13 combat bots 21230 | -4/Armory | High security lockdown imminent 21292 | -4/Armory | Destroyed Armor Guard 21310 | -4/Armory | High security lockdown engaged 21364 | -4/Armory | Discovered new exit (range 2) 21365 | -4/Armory | Identified exit to Lab 21386 | -4/Armory | Entered Lab 21386 | -4/Lab | Discovered exit to Research (range 9) 21399 | -4/Lab | Entered Research 21399 | -3/Research | Evolved 2 slots: Propulsion x2 21585 | -3/Research | Identified exit to Quarantine 21599 | -3/Research | Revision forces began assault on 0b10 21653 | -3/Research | Met up with Revision 17++ 21772 | -3/Research | Discovered new exit (range 15) 21794 | -3/Research | Identified exit to Research 21969 | -3/Research | Found Unknown Launcher 21969 | -3/Research | Identified Fusion Bomb Launcher 22085 | -3/Research | Found Gamma Bomb Array 22099 | -3/Research | Research terminal network offline 22187 | -3/Research | Entered Quarantine 22203 | -3/Quarantine | Found Alien Artifact 22210 | -3/Quarantine | Found Alien Artifact 22273 | -3/Quarantine | Found Alien Artifact 22664 | -3/Quarantine | Cryocooling Duct disabled 22679 | -3/Quarantine | Ambient heat levels rising (+20) 22679 | -3/Quarantine | Non-combat units ordered to evacuate 23083 | -3/Quarantine | Entered Research 23083 | -2/Research | Evolved 2 slots: Power x1, Utility x1 24103 | -2/Research | Identified exit to Testing 24254 | -2/Research | Identified Transdimensional Reconstructor (x2) 24254 | -2/Research | Warped through subspace 24354 | -2/Research | Entered Testing 24701 | -2/Testing | Discovered new exit (range 13) 24775 | -2/Testing | Found Prototype Energy Cannon 24775 | -2/Testing | Identified Hpw. Disruptor Cannon 24824 | -2/Testing | Identified exit to Access 25135 | -2/Testing | Entered Access 25135 | -1/Access | Evolved 2 slots: Utility x2 25325 | -1/Access | Unchained authorized (6S-H0T) 25802 | -1/Access | Discovered new exit (range 14) 26380 | -1/Access | Identified Dimensional Node Initializer 26380 | -1/Access | Initialized slip node 26565 | -1/Access | Destroyed 6S-H0T 26584 | -1/Access | Found Prototype Device 26584 | -1/Access | Identified Zeronet Interface 26592 | -1/Access | Identified exit to Command 26594 | -1/Access | Entered Command 27391 | -1/Command | System corruption reached 10% 30094 | -1/Command | First assault squad dispatched 30251 | -1/Command | Lost 3 parts (1p2u) 30953 | -1/Command | Destroyed 7 combat bots 31456 | -1/Command | Destroyed 8 combat bots 31525 | -1/Command | Identified Subatomic Replicator 31525 | -1/Command | Used Subatomic Replicator to replicate Adv. Force Field 32672 | -1/Command | High security lockdown imminent 32693 | -1/Command | Destroyed 9 combat bots 32752 | -1/Command | High security lockdown engaged 32877 | -1/Command | Destroyed 16 combat bots 32929 | -1/Command | Spotted Investigator 32929 | -1/Command | Scanned by Researcher 32930 | -1/Command | Destroyed Investigator 32931 | -1/Command | Spotted Executioner 32953 | -1/Command | Destroyed Executioner 32989 | -1/Command | Destroyed 18 combat bots 33159 | -1/Command | Spotted Investigator 33159 | -1/Command | Destroyed Investigator 33161 | -1/Command | Spotted Striker 33161 | -1/Command | Spotted Striker 33166 | -1/Command | Destroyed Executioner 33168 | -1/Command | Destroyed Striker 33172 | -1/Command | Spotted Executioner 33172 | -1/Command | Destroyed Executioner 33173 | -1/Command | Spotted Executioner 33174 | -1/Command | Destroyed Striker 33181 | -1/Command | Destroyed Executioner 33190 | -1/Command | Spotted Executioner 33190 | -1/Command | Spotted Executioner 33190 | -1/Command | Spotted Striker 33198 | -1/Command | Destroyed Executioner 33204 | -1/Command | Destroyed Striker 33209 | -1/Command | Destroyed Executioner 33230 | -1/Command | Destroyed 23 combat bots 33371 | -1/Command | Spotted Striker 33373 | -1/Command | Spotted Executioner 33375 | -1/Command | Spotted Striker 33378 | -1/Command | Spotted Executioner 33401 | -1/Command | Destroyed 7 combat bots 33414 | -1/Command | Core integrity fell below 50% 33435 | -1/Command | Spotted Alpha 7 33435 | -1/Command | Spotted Executioner 33435 | -1/Command | Spotted Striker 33440 | -1/Command | Spotted Executioner 33440 | -1/Command | Spotted Striker 33440 | -1/Command | Spotted Alpha 7 33440 | -1/Command | Spotted B-99 Colossus 33440 | -1/Command | Spotted Executioner 33440 | -1/Command | Spotted Executioner 33443 | -1/Command | Core integrity fell below 20% 33443 | -1/Command | Spotted B-99 Colossus 33447 | -1/Command | Destroyed by Executioner with Helical Railgun Last Messages --------------- 33443_ Field strength at 94. 33443_ Penetrated by Slug. 33443_ Slug penetrates Wall. 33443_ Surveybot 17 Chip destroyed. 33443_ K-01 Serf collects debris. 33443_ Field strength at 66. 33444_ Field strength at 34. 33445_ Penetrated by Slug. 33445_ Slug penetrates Wall. 33445_ Slug penetrates Executioner. 33445_ Slug penetrates Reinforced Barrier. 33445_ Slug penetrates Wall. 33445_ Penetrated by Slug. 33445_ Slug penetrates Reinforced Barrier. 33445_ Penetrated by Slug. 33445_ Stasis field depleted. 33445_ Penetrated by Slug. 33446_ Knocked back. 33446_ Centrium Leg destroyed. 33447_ Penetrated by Slug. Map ----- +----------------------------------------------------+ | ## ######## #" # #??# # | | ## T" %"% # #??# # | | #? " *% " %/ # #??# # | | #? ####### % # #??#########" | | #?# #?# ! # # #######"###"" | | #?# #?# ## # | " " | | #?# #?# ## =########## # % | | #?# #?# ] #= %###"########## % | | #?# #######/##*= [%= [%% ! | | #?# =% %! #######"###########" | | #?# ! *%== % "#????????????????#" | | ### "#########[[ ##????????????????## | | ##" ##???????#%[ #??????????????????######" | | ### ##???????########???????????????????????## | | #####== #??????????????????????????????#######??# | | [ #??????????????????????????????# #### | | * #??????????????????????????????# #"## | | ##### #??????????????????????????????# /!=! | | ####"##????????????????????#######???# # ## | | #??# #?????????????????????#! ???# #=## | | #??# #?????????????????????# # # #? | | #??# #?????????????????????# """" # # #? | | #??###?????????????????????# """" # # ## | | #??????????????????????????# """" # # | | #???????????? ?????#######?# """" # # | | #?????????? ??## @ ### + / | | #???????? " # E % # # # | | #???????????" E K /############# | | #???????????" K 7 | | #???????????" | | #???????????" % % p | | = #???????????" ^ E E * p | | ????????????" BB ^ K ;;=]! =##/####### ### | | ????????????? ^ BB# # # #7;## #%k %# #?# #?? | | ????????????? ############# # #?# ### | | ?????????????? ?????????????# #"" #?# ## | | ??????????????###??????????????# #"" #?# ## | | ???##########?????????????????## #"" #?# ## | | #### ####?##############" #T #?# ## | | " #?# + #"" #?# ## | | " ### " #"" #?# ## | | / # #*! #?" ### ## | | ### ==%! #? ## ## | | #?# #! #? ## " | | = #?# #* #? = ## ## | | = ! #?####+#"######## #? ######? | | ######"#""########"#" "##??????# #?######?????? | | ##???????#### #????????????? | | [ "#??????????# #????????????? | | [%= % ##??????????# #????????????? | +----------------------------------------------------+ Best States ------------- Heat Dissipation 149 Coolant Potential 50 Energy Generation 65 Energy Capacity 850 Matter Stores 300 Matter Capacity 300 Sight Range 16 Robot Scan Range 18 Terrain Scan Range 14 Terrain Scan Density 1210 ECM Strength 2 Jamming Range 16 Corruption Containment 12 Armor Coverage 1350 Weapon Cycling 25 Evasion (%) 50 Core Analysis 6 Recoil Reduction 6 Offensive Hacking 11 Authchip Count 1 Item Schematics ----------------- Assault Drone Bay | -5/Zhirov | Free Exp. Heat Sink | -5/Zhirov | Free Exp. Optical Array | -5/Zhirov | Free Imp. Arc Thrower | -5/Zhirov | Free Robot Schematics ------------------ None Fabricated ------------ Assault Drone Bay | x1 | -4/Armory | Authchip Repaired ---------- Nothing Studied --------- Hvy. Shock Bomb Launcher | -3/Research | Hacked Enh. Hardcell Cannon | -3/Research | Hacked Enh. Nova Cannon | -1/Access | Hacked Alien Tech Used ----------------- Integrated Dissipator Transdimensional Reconstructor Dimensional Node Initializer Subatomic Replicator Achievements -------------- Betrayal Most Foul Out Of My Way Strength In Numbers Tune-up Challenges ------------ None Game ------ Seed ScrapoidPrecisionExoskeleton Manual? 0 Play Time 05:29:10 Cumulative 358.1 hours Start 2026.02.01 @ 12:56:16 End 2026.02.08 @ 14:16:38 Sessions 8 Manual Loads 0 Difficulty Rogue Special Mode None Game No. 99 Rogue 93 Adventurer 0 Explorer 6 Win Type - Total 21 Types 10/1/3/1/1/0/2/1/1/1 Lore% 88 Gallery% 79 Achievement% 72 Wizard Run 0 Options --------- Layout 1 ASCII 0 Keyboard 0 Movement Mouse Keybinds 0 Fullscreen 2 Font 24/Smallcaps Map View 50x35 Zoom Use 0% Tactical HUD 1 Map Filters NONE Filters NONE Steam 1 RUN: 14e49e8b-3db9-48b0-b650-7afd65119e81